bitfinex-derivatives/quotes_SOLF0:USTF0_20241226
["timestamp","ask_amount","ask_price","bid_price","bid_amount"]
[1735255673710,6.31762338,187.92,187.88,2.6643]
[1735255675515,2.664,187.9,187.87,5.8444]
[1735255680413,8.98162338,187.9,187.87,5.8444]
[1735255682114,2.6642,187.89,187.87,3.18]
[1735255684524,2.6642,187.89,187.86,2.6646]
[1735255689825,2.6642,187.89,187.86,5.8446]
[1735255691531,8.98172338,187.9,187.87,2.6643]
[1735255692937,6.31762338,187.9,187.86,3.18]
[1735255693233,2.6642,187.89,187.86,5.8445]
[1735255694231,8.98162338,187.9,187.87,2.6643]
[1735255696033,6.31762338,187.9,187.87,2.6643]
[1735255696336,2.6641,187.89,187.87,2.6643]
[1735255702741,6.31762338,187.88,187.84,5.8447]
[1735255704441,2.6645,187.87,187.84,5.8447]
[1735255705638,2.6643,187.88,187.84,5.8447]
[1735255706639,20.54085984,187.95,187.87,2.6644]
[1735255706838,6.31762338,187.92,187.87,2.6644]
[1735255707143,6.31762338,187.9,187.87,2.6644]
[1735255708542,8.98162338,187.9,187.87,2.6644]
[1735255713144,8.98162338,187.9,187.87,5.8444]
[1735255730963,20.54585245,187.97,187.88,6.31762338]
[1735255731153,6.31762338,187.93,187.87,3.18]
[1735255731351,6.31762338,187.91,187.87,3.18]
[1735255731658,2.664,187.9,187.87,3.18]
[1735255732052,2.664,187.9,187.87,5.8444]
[1735255734374,2.6639,187.91,187.88,2.6642]
[1735255735265,6.31762338,187.93,187.89,2.6641]
[1735255735565,2.6637,187.92,187.89,2.6641]
[1735255745070,2.6637,187.92,187.88,2.6642]
[1735255745872,2.6638,187.92,187.87,3.18]
[1735255746074,20.55853193,187.98,187.91,6.31762338]
[1735255746280,12.41564618,187.98,187.92,3.18]
[1735255746471,6.31762338,187.95,187.92,3.18]
[1735255746666,6.31762338,187.93,187.86,3.18]
[1735255746972,6.31762338,187.89,187.82,3.3676]
[1735255747172,6.31762338,187.89,187.83,3.18]
[1735255747574,3.2513,187.96,187.83,3.18]
[1735255747764,6.31762338,187.88,187.84,7.38769153]
[1735255748375,2.6642,187.89,187.84,7.38769153]
[1735255748585,8.98162338,187.9,187.83,9.49762338]
[1735255748877,6.31762338,187.9,187.86,2.6645]
[1735255749678,8.98172338,187.9,187.85,2.6647]
[1735255751775,8.98172338,187.9,187.83,9.49762338]
[1735255752077,8.98172338,187.9,187.86,2.6645]
[1735255754776,6.31762338,187.9,187.86,2.6645]
[1735255754968,2.6642,187.89,187.87,3.18]
[1735255759482,6.31762338,187.92,187.87,3.18]
[1735255759686,2.6641,187.9,187.87,3.18]
[1735255765083,3.2513,187.96,187.87,3.18]
[1735255765383,6.31762338,187.96,187.87,9.49762338]
[1735255765586,6.31762338,187.96,187.89,6.31762338]
[1735255766689,8.98092338,187.96,187.92,2.6636]
[1735255768790,2.6631,187.97,187.93,5.8435]
[1735255769182,6.31762338,187.98,187.93,5.8435]
[1735255770189,2.6632,187.96,187.93,3.18]
[1735255783302,2.6632,187.96,187.93,5.8436]
[1735255789324,3.3353,188.01,187.94,2.6634]
[1735255789505,6.31762338,187.98,187.94,2.6634]
[1735255790406,2.6631,187.97,187.94,2.6634]
[1735255801006,2.6634,187.94,187.93,3.18]
[1735255801227,6.31762338,187.96,187.89,3.18]
[1735255801405,6.31762338,187.94,187.89,3.18]
[1735255801708,3.3353,188.01,187.89,3.18]
[1735255801709,6.31762338,187.98,187.91,6.31762338]
[1735255801899,3.3353,188.01,187.91,6.31762338]
[1735255802106,2.6631,187.97,187.93,2.6635]
[1735255803212,8.98072338,187.97,187.93,2.6635]
[1735255805510,3.3353,188.01,187.94,3.18]
[1735255805814,9.65292338,188.01,187.94,3.18]
[1735255806406,2.6627,187.99,187.96,2.6631]
[1735255808310,2.6627,187.99,187.95,2.6632]
[1735255815915,3.99585851,188.02,187.94,3.18]
[1735255816117,2.6626,188.0,187.97,2.6629]
[1735255818322,6.31762338,188.02,187.97,2.6629]
[1735255818518,3.99585851,188.03,187.95,6.31762338]
[1735255818718,21.87863646,188.06,187.99,6.31762338]
[1735255818719,8.42245806,188.05,187.99,6.31762338]
[1735255818917,21.87863646,188.06,188.01,6.31762338]
[1735255819221,24.54043646,188.06,188.02,2.6622]
[1735255819426,21.87863646,188.06,188.01,6.31762338]
[1735255819922,21.87863646,188.06,188.03,6.31762338]
[1735255820319,2.6615,188.08,188.04,2.662]
[1735255823620,2.6616,188.07,188.03,2.6621]
[1735255823832,6.31762338,188.1,188.02,6.31762338]
[1735255824825,2.6615,188.08,188.04,2.6619]
[1735255825026,6.31762338,188.06,187.95,3.1651]
[1735255825328,6.31762338,188.0,187.96,3.16]
[1735255825627,2.6629,187.98,187.96,3.16]
[1735255825832,6.31762338,188.0,187.96,3.16]
[1735255826024,2.663,187.97,187.96,3.16]
[1735255826423,6.31762338,187.98,187.96,3.16]
[1735255826627,8.98022338,188.0,187.96,3.16]
[1735255827629,2.6627,187.99,187.96,3.16]
[1735255828927,3.3798,188.04,187.96,3.16]
[1735255829127,6.31762338,188.0,187.96,5.8231]
[1735255829324,6.31762338,188.0,187.96,3.16]
[1735255830436,2.6627,187.99,187.96,3.16]
[1735255830938,6.31762338,188.0,187.96,3.16]
[1735255831235,6.31762338,187.98,187.91,6.31762338]
[1735255831432,6.31762338,187.98,187.92,3.16]
[1735255831631,6.31762338,188.0,187.93,6.31762338]
[1735255831832,6.31762338,188.02,187.95,6.31762338]
[1735255832234,8.98002338,188.02,187.97,2.663]
[1735255832433,6.31762338,188.02,187.97,2.663]
[1735255832939,2.6625,188.01,187.96,2.6631]
[1735255833632,2.6626,188.0,187.96,2.6631]
[1735255833838,6.31762338,188.0,187.94,2.6633]
[1735255834032,6.31762338,188.0,187.92,9.47762338]
[1735255834233,3.3798,188.04,187.93,3.16]
[1735255834234,2.6632,187.96,187.93,3.16]
[1735255835535,2.663,187.98,187.93,3.16]
[1735255835736,6.31762338,188.0,187.93,3.16]
[1735255835938,6.31762338,187.98,187.92,3.16]
[1735255836133,2.6639,187.91,187.89,3.0541]
[1735255836340,6.31762338,187.94,187.88,3.16]
[1735255837642,6.31762338,187.92,187.87,3.16]
[1735255839839,2.6642,187.89,187.87,3.16]
[1735255843149,2.6642,187.89,187.84,8.98242338]
[1735255843351,2.6642,187.89,187.85,3.16]
[1735255846048,3.1865,187.99,187.82,9.6832]
[1735255846049,6.31762338,187.9,187.82,9.6832]
[1735255846350,6.31762338,187.86,187.8,3.16]
[1735255846549,6.31762338,187.86,187.73,6.1131]
[1735255846550,2.6652,187.82,187.75,2.666]
[1735255846745,6.31762338,187.84,187.76,3.16]
[1735255847147,2.6655,187.8,187.76,3.16]
[1735255847348,3.0997,187.88,187.76,3.16]
[1735255847647,8.98262338,187.84,187.78,6.31762338]
[1735255847844,8.98262338,187.84,187.79,2.6654]
[1735255848547,6.31762338,187.84,187.79,2.6654]
[1735255848753,2.665,187.83,187.78,6.31762338]
[1735255848948,6.31762338,187.84,187.77,2.6658]
[1735255849449,6.31762338,187.82,187.76,3.16]
[1735255850151,2.6655,187.8,187.76,3.16]
[1735255850351,6.31762338,187.82,187.76,12.14362338]
[1735255851055,2.6654,187.8,187.76,12.14362338]
[1735255851554,6.31762338,187.82,187.75,3.16]
[1735255851854,2.6658,187.78,187.75,3.16]
[1735255852057,6.31762338,187.8,187.74,3.16]
[1735255852653,2.6658,187.78,187.74,3.16]
[1735255853552,6.31762338,187.8,187.68,55.38]
[1735255853754,6.31762338,187.78,187.7,6.31762338]
[1735255853957,6.31762338,187.76,187.7,9.47762338]
[1735255854552,6.31762338,187.76,187.7,6.31762338]
[1735255854755,6.31762338,187.76,187.7,9.47762338]
[1735255855559,2.6664,187.74,187.7,9.47762338]
[1735255856155,6.31762338,187.76,187.7,9.47762338]
[1735255856355,2.6661,187.75,187.71,2.6667]
[1735255858456,2.666,187.76,187.7,12.14442338]
[1735255858657,6.31762338,187.78,187.7,12.14442338]
[1735255859258,2.6662,187.75,187.7,12.14442338]
[1735255860059,6.31762338,187.78,187.7,12.14442338]
[1735255860359,2.6665,187.73,187.7,3.16]
[1735255861151,2.6665,187.73,187.69,3.1168]
[1735255861152,6.31762338,187.76,187.61,43.04438327]
[1735255861352,6.31762338,187.72,187.62,9.4986]
[1735255861553,6.31762338,187.72,187.64,8.98532338]
[1735255861951,6.31762338,187.72,187.63,3.16]
[1735255861952,6.31762338,187.74,187.66,6.31762338]
[1735255862160,6.31762338,187.76,187.68,6.31762338]
[1735255862362,6.31762338,187.76,187.69,3.16]
[1735255862861,2.6663,187.75,187.71,2.6667]
[1735255863062,6.31762338,187.76,187.69,3.16]
[1735255864261,2.6664,187.74,187.69,5.8269]
[1735255865451,2.6664,187.73,187.69,5.8269]
[1735255866160,6.3705,187.82,187.69,3.16]
[1735255866360,2.6662,187.75,187.7,2.6667]
[1735255866961,2.6663,187.74,187.7,2.6667]
[1735255867561,2.6665,187.73,187.69,5.827]
[1735255868263,2.6666,187.72,187.69,3.16]
[1735255868563,6.31762338,187.72,187.69,3.16]
[1735255868755,6.31762338,187.72,187.64,6.31762338]
[1735255868756,2.6671,187.69,187.65,3.16]
[1735255869859,2.6671,187.69,187.65,5.8275]
[1735255870862,2.6669,187.7,187.66,2.6674]
[1735255871064,6.31762338,187.73,187.65,3.16]
[1735255871866,6.31762338,187.75,187.68,6.31762338]
[1735255872066,6.31762338,187.75,187.66,6.31762338]
[1735255872266,2.6667,187.72,187.67,2.6672]
[1735255872463,6.31762338,187.75,187.67,2.6672]
[1735255872668,6.31762338,187.73,187.67,2.6672]
[1735255873472,2.6667,187.72,187.67,2.6672]
[1735255873670,2.6667,187.72,187.68,3.16]
[1735255875058,2.6668,187.71,187.68,3.16]
[1735255875572,6.31762338,187.71,187.68,3.16]
[1735255875768,6.31762338,187.71,187.64,3.16]
[1735255876068,6.31762338,187.67,187.62,6.3252]
[1735255876371,6.31762338,187.67,187.62,3.1652]
[1735255876575,2.6676,187.65,187.62,3.1652]
[1735255878072,2.6678,187.63,187.6,3.16]
[1735255878268,6.31762338,187.65,187.58,6.31762338]
[1735255878465,6.31762338,187.65,187.58,3.16]
[1735255878673,6.31762338,187.63,187.58,3.16]
[1735255878972,6.31762338,187.63,187.57,6.3742]
[1735255878973,6.31762338,187.63,187.57,9.5342]
[1735255879476,2.6682,187.61,187.57,12.2029]
[1735255880171,2.6682,187.61,187.57,9.0429]
[1735255880373,2.6682,187.61,187.56,12.14642338]
[1735255880565,6.31762338,187.61,187.55,3.3079]
[1735255880771,6.31762338,187.61,187.55,6.4679]
[1735255881078,2.6685,187.59,187.55,3.3079]
[1735255881874,2.6685,187.59,187.54,12.14672338]
[1735255882576,3.2973,187.7,187.51,9.38302338]
[1735255882577,2.6689,187.56,187.51,9.38302338]
[1735255882776,2.6689,187.56,187.52,3.16]
[1735255884079,6.31762338,187.57,187.52,5.8294]
[1735255884280,2.669,187.55,187.52,5.8294]
[1735255884480,2.669,187.55,187.52,3.16]
[1735255886386,6.31762338,187.6,187.53,6.31762338]
[1735255886587,6.31762338,187.62,187.53,6.31762338]
[1735255886883,2.6681,187.61,187.56,2.6687]
[1735255887086,6.31762338,187.6,187.52,3.16]
[1735255887379,6.31762338,187.6,187.52,9.47762338]
[1735255887586,6.31762338,187.58,187.52,3.16]
[1735255888379,2.6687,187.57,187.53,2.6693]
[1735255888590,6.31762338,187.58,187.53,2.6693]
[1735255888984,2.6687,187.57,187.53,2.6693]
[1735255891891,6.31762338,187.58,187.52,5.8494]
[1735255891892,2.6689,187.56,187.52,5.8494]
[1735255893798,6.31762338,187.54,187.48,3.18]
[1735255893987,6.31762338,187.54,187.45,3.3172]
[1735255894183,6.31762338,187.52,187.46,3.18]
[1735255894486,2.6699,187.49,187.46,3.18]
[1735255894883,2.6699,187.49,187.45,3.3172]
[1735255895482,6.31762338,187.48,187.43,6.4148]
[1735255896094,6.31762338,187.48,187.43,3.16]
[1735255896493,2.6703,187.46,187.43,3.16]
[1735255897190,2.6702,187.47,187.43,3.16]
[1735255898388,2.6702,187.47,187.43,5.8306]
[1735255899102,2.6702,187.47,187.43,2.6706]
[1735255899299,3.18,187.57,187.43,2.6706]
[1735255899502,6.31762338,187.49,187.43,2.6706]
[1735255900097,2.6701,187.47,187.42,3.16]
[1735255900299,2.6701,187.47,187.42,5.8308]
[1735255901899,6.31762338,187.47,187.42,3.16]
[1735255902092,6.31762338,187.47,187.4,8.0707056]
[1735255902093,6.31762338,187.47,187.4,11.2507056]
[1735255902403,6.31762338,187.45,187.4,6.5416]
[1735255902698,6.31762338,187.45,187.4,3.3616]
[1735255903089,6.31762338,187.45,187.39,3.18]
[1735255903295,2.6708,187.43,187.39,3.18]
[1735255903600,2.6708,187.43,187.38,12.16892338]
[1735255903796,2.6705,187.45,187.4,2.6711]
[1735255904599,6.31762338,187.47,187.4,2.6711]
[1735255904796,6.31762338,187.45,187.38,12.16902338]
[1735255905603,2.6708,187.43,187.38,12.16902338]
[1735255906196,6.31762338,187.45,187.37,3.2548]
[1735255906402,6.31762338,187.45,187.37,6.4348]
[1735255906604,6.31762338,187.43,187.37,6.4348]
[1735255907295,3.2162,187.5,187.37,6.4348]
[1735255907604,6.31762338,187.48,187.4,6.31762338]
[1735255907904,6.31762338,187.46,187.38,6.31762338]
[1735255908205,6.31762338,187.46,187.37,6.4348]
[1735255908408,6.31762338,187.46,187.38,6.31762338]
[1735255908906,6.31762338,187.46,187.39,6.31762338]
[1735255909405,2.6707,187.44,187.4,2.6711]
[1735255909607,6.31762338,187.46,187.4,2.6711]
[1735255909920,6.31762338,187.46,187.37,6.4348]
[1735255910101,2.6708,187.43,187.39,2.6712]
[1735255911104,6.31762338,187.44,187.38,3.18]
[1735255911301,6.31762338,187.42,187.38,3.18]
[1735255911506,6.31762338,187.42,187.36,9.6947]
[1735255911706,6.31762338,187.42,187.36,6.5062]
[1735255913006,2.6713,187.39,187.36,6.5062]
[1735255913708,6.31762338,187.4,187.36,6.5062]
[1735255914009,2.6714,187.38,187.36,6.5062]
[1735255914601,2.6714,187.38,187.36,3.3262]
[1735255917109,2.6712,187.4,187.37,2.6715]
[1735255917506,6.31762338,187.42,187.36,3.3262]
[1735255917712,2.671,187.41,187.38,2.6713]
[1735255919312,2.671,187.41,187.36,3.3262]
[1735255919313,6.31762338,187.42,187.36,3.3262]
[1735255919616,6.31762338,187.42,187.4,2.671]
[1735255920013,6.31762338,187.42,187.36,3.3262]
[1735255921411,2.671,187.41,187.38,2.6714]
[1735255923412,9.7336,187.51,187.39,6.31762338]
[1735255923614,6.31762338,187.47,187.4,3.18]
[1735255924317,2.6703,187.46,187.43,2.6706]
[1735255925416,6.31762338,187.47,187.44,2.6704]
[1735255926010,3.3626,187.51,187.41,6.31762338]
[1735255926217,6.31762338,187.5,187.43,6.31762338]
[1735255926405,6.31762338,187.5,187.43,9.52502338]
[1735255926915,8.98742338,187.5,187.46,2.6701]
[1735255927815,2.6698,187.5,187.43,9.52502338]
[1735255928013,6.31762338,187.51,187.48,2.6699]
[1735255928812,6.31762338,187.51,187.43,9.52502338]
[1735255929116,9.4206,187.6,187.47,9.49762338]
[1735255929317,6.31762338,187.55,187.47,9.49762338]
[1735255929511,8.98692338,187.53,187.49,2.6697]
[1735255929711,8.98692338,187.53,187.47,3.18]
[1735255929911,6.31762338,187.53,187.5,2.6697]
[1735255930121,6.31762338,187.53,187.47,9.49762338]
[1735255930616,6.2606,187.6,187.52,2.6694]
[1735255930837,6.31762338,187.57,187.52,3.16]
[1735255931014,3.3549,187.62,187.52,3.16]
[1735255931214,6.31762338,187.58,187.52,3.16]
[1735255931721,3.16,187.64,187.52,3.16]
[1735255932019,6.31762338,187.58,187.52,3.16]
[1735255933119,6.31762338,187.56,187.52,3.16]
[1735255933424,6.31762338,187.56,187.41,29.55076613]
[1735255933425,2.6696,187.51,187.48,3.16]
[1735255933614,8.98722338,187.51,187.48,3.16]
[1735255934115,6.31762338,187.49,187.45,3.16]
[1735255934618,6.31762338,187.49,187.45,5.8303]
[1735255935421,6.31762338,187.49,187.45,2.6703]
[1735255936716,6.31762338,187.49,187.46,2.6702]
[1735255938414,6.31762338,187.49,187.44,3.16]
[1735255938616,2.6703,187.46,187.44,3.16]
[1735255938814,6.31762338,187.47,187.44,3.16]
[1735255939918,2.6692,187.54,187.47,2.6701]
[1735255940115,6.31762338,187.51,187.47,2.6701]
[1735255940721,6.31762338,187.49,187.46,2.6702]
[1735255940924,6.31762338,187.49,187.44,3.16]
[1735255941922,2.67,187.48,187.44,3.16]
[1735255942332,2.67,187.48,187.43,2.6707]
[1735255943221,8.98752338,187.49,187.42,3.16]
[1735255943426,6.31762338,187.51,187.42,9.47762338]
[1735255944022,8.98732338,187.51,187.46,2.6702]
[1735255945128,2.6692,187.54,187.47,3.16]
[1735255945328,6.31762338,187.53,187.47,3.16]
[1735255945724,6.31762338,187.53,187.49,2.6698]
[1735255945925,6.31762338,187.53,187.47,3.16]
[1735255946119,6.31762338,187.51,187.47,3.16]
[1735255946622,2.6697,187.5,187.47,3.16]
[1735255946823,6.31762338,187.51,187.47,3.16]
[1735255947223,6.31762338,187.53,187.47,3.16]
[1735255947729,6.31762338,187.53,187.49,2.6697]
[1735255948327,8.98692338,187.53,187.49,2.6697]
[1735255949628,6.31762338,187.53,187.5,2.6696]
[1735255949825,6.31762338,187.55,187.47,9.47762338]
[1735255951932,2.6689,187.56,187.49,6.31762338]
[1735255952432,2.6689,187.56,187.52,2.6693]
[1735255952632,2.6689,187.56,187.52,5.8293]
[1735255955935,2.669,187.55,187.52,5.8293]
[1735255956228,8.98662338,187.55,187.52,3.16]
[1735255956727,6.31762338,187.55,187.52,3.16]
[1735255956923,2.6692,187.54,187.52,3.16]
[1735255957937,8.98662338,187.55,187.52,3.16]
[1735255959137,6.31762338,187.55,187.53,2.6692]
[1735255959333,6.31762338,187.55,187.52,3.16]
[1735255960134,6.31762338,187.55,187.52,5.8294]
[1735255960436,6.31762338,187.57,187.52,3.16]
[1735255960631,8.98632338,187.57,187.53,2.6692]
[1735255961140,2.6684,187.59,187.55,2.669]
[1735255961435,8.98602338,187.59,187.55,2.669]
[1735255961643,6.31762338,187.59,187.53,6.31762338]
[1735255961832,6.31762338,187.61,187.53,6.31762338]
[1735255962134,8.98592338,187.61,187.56,2.6687]
[1735255962333,8.98592338,187.61,187.53,6.31762338]
[1735255962836,6.31762338,187.63,187.55,6.31762338]
[1735255964934,2.668,187.62,187.58,2.6684]
[1735255965140,6.31762338,187.63,187.58,2.6684]
[1735255965533,2.668,187.62,187.58,2.6684]
[1735255965732,6.31762338,187.63,187.57,3.16]
[1735255966947,6.31762338,187.61,187.57,3.16]
[1735255967330,6.31762338,187.63,187.57,3.16]
[1735255968043,8.98542338,187.63,187.59,2.6683]
[1735255968244,8.98542338,187.63,187.57,3.16]
[1735255968639,2.6683,187.6,187.57,5.8287]
[1735255969837,2.6685,187.58,187.55,2.669]
[1735255971644,2.6687,187.57,187.54,2.6691]
[1735255972744,6.31762338,187.59,187.53,3.16]
[1735255973443,8.98582338,187.61,187.58,2.6684]
[1735255973642,6.31762338,187.63,187.55,6.31762338]
[1735255973847,6.31762338,187.63,187.56,3.16]
[1735255974043,6.31762338,187.63,187.6,2.6682]
[1735255974851,6.31762338,187.63,187.56,3.16]
[1735255975051,6.31762338,187.63,187.6,2.6682]
[1735255977144,2.668,187.62,187.58,2.6685]
[1735255977351,6.31762338,187.63,187.56,3.16]
[1735255979054,2.6677,187.64,187.61,2.668]
[1735255980753,2.6677,187.64,187.6,2.6682]
[1735255980956,6.31762338,187.63,187.6,2.6682]
[1735255981251,2.6682,187.61,187.57,2.6686]
[1735255981449,2.6682,187.61,187.56,3.16]
[1735255982551,2.6682,187.61,187.58,2.6685]
[1735255982851,6.31762338,187.59,187.52,3.2534]
[1735255983256,6.31762338,187.59,187.53,3.16]
[1735255983459,6.31762338,187.59,187.53,5.8293]
[1735255984158,2.6688,187.57,187.53,3.16]
[1735255984369,6.31762338,187.59,187.53,3.16]
[1735255984953,6.31762338,187.59,187.56,2.6688]
[1735255986659,6.31762338,187.59,187.53,3.16]
[1735255987755,6.31762338,187.61,187.53,3.16]
[1735255987957,8.98582338,187.61,187.57,2.6686]
[1735255988762,8.98582338,187.61,187.54,6.31762338]
[1735255988960,8.98582338,187.61,187.58,2.6685]
[1735255989161,6.31762338,187.61,187.58,2.6685]
[1735255989758,6.31762338,187.63,187.54,6.31762338]
[1735255990060,6.31762338,187.63,187.58,2.6685]
[1735255991659,2.6682,187.61,187.58,2.6685]
[1735255996366,6.31762338,187.59,187.52,9.57102338]
[1735255996562,6.31762338,187.59,187.54,3.16]
[1735255996770,6.31762338,187.57,187.52,6.4134]
[1735255997569,2.669,187.55,187.52,6.4134]
[1735255998464,2.6692,187.54,187.51,3.16]
[1735255998666,2.6692,187.54,187.5,5.8297]
[1735256001162,6.31762338,187.55,187.47,3.3217]
[1735256001359,6.31762338,187.55,187.48,5.8299]
[1735256002164,2.6695,187.52,187.48,5.8299]
[1735256003559,6.31762338,187.55,187.51,2.6695]
[1735256004063,2.6692,187.54,187.51,2.6695]
[1735256004563,6.31762338,187.55,187.5,2.6697]
[1735256004770,2.6693,187.53,187.5,2.6697]
[1735256006669,6.31762338,187.55,187.5,2.6697]
[1735256006868,2.6692,187.54,187.5,2.6697]
[1735256007068,2.6692,187.54,187.48,3.16]
[1735256007270,2.6692,187.54,187.51,2.6695]
[1735256010069,2.6692,187.54,187.48,3.16]
[1735256010070,11.46160775,187.61,187.49,6.31762338]
[1735256010376,6.31762338,187.59,187.51,6.31762338]
[1735256011078,6.31762338,187.61,187.53,6.31762338]
[1735256011269,6.31762338,187.61,187.54,3.16]
[1735256011574,6.31762338,187.61,187.58,2.6684]
[1735256012169,6.31762338,187.61,187.54,3.16]
[1735256012374,8.98572338,187.61,187.57,2.6686]
[1735256016775,2.6683,187.6,187.57,2.6686]
[1735256019072,6.31762338,187.61,187.54,3.16]
[1735256019273,11.53158883,187.67,187.55,6.31762338]
[1735256019475,6.31762338,187.64,187.57,6.31762338]
[1735256019775,6.31762338,187.65,187.56,6.31762338]
[1735256020077,2.6678,187.64,187.6,2.6682]
[1735256020277,6.31762338,187.65,187.59,3.16]
[1735256020681,6.31762338,187.65,187.63,2.6677]
[1735256021179,6.31762338,187.65,187.59,3.16]
[1735256021180,2.6672,187.68,187.65,2.6676]
[1735256022382,2.6673,187.67,187.64,2.6677]
[1735256024882,67.94642315,187.71,187.64,9.47762338]
[1735256025077,21.87863646,187.76,187.66,6.31762338]
[1735256025280,6.31762338,187.74,187.68,6.31762338]
[1735256025578,6.31762338,187.74,187.72,2.6665]
[1735256025778,6.31762338,187.76,187.69,3.16]
[1735256025978,90.66564587,187.79,187.7,6.31762338]
[1735256025979,6.31762338,187.78,187.7,6.31762338]
[1735256026477,2.666,187.77,187.73,2.6664]
[1735256026685,6.31762338,187.74,187.66,3.16]
[1735256026880,224.0228123,187.82,187.66,3.16]
[1735256026881,6.31762338,187.72,187.66,3.16]
[1735256027182,2.6669,187.7,187.67,2.6673]
[1735256027485,6.31762338,187.72,187.66,3.16]
[1735256027880,6.31762338,187.74,187.66,9.47762338]
[1735256028379,6.31762338,187.74,187.69,2.6669]
[1735256028876,2.6668,187.71,187.67,2.6671]
[1735256029077,6.31762338,187.72,187.66,9.47762338]
[1735256029474,6.31762338,187.74,187.66,9.47762338]
[1735256029682,6.31762338,187.76,187.68,6.31762338]
[1735256029880,6.31762338,187.76,187.7,6.31762338]
[1735256030080,6.31762338,187.76,187.73,2.6663]
[1735256030781,8.98372338,187.76,187.72,2.6665]
[1735256031282,8.98372338,187.76,187.73,2.6664]
[1735256032383,6.31762338,187.76,187.73,2.6664]
[1735256033287,6.31762338,187.78,187.71,3.16]
[1735256033485,8.98332338,187.78,187.74,2.6663]
[1735256036689,8.98302338,187.8,187.71,9.47762338]
[1735256037191,8.98302338,187.8,187.75,2.666]
[1735256038697,3.3818,187.82,187.73,6.31762338]
[1735256038995,6.31762338,187.81,187.78,2.6656]
[1735256040590,6.31762338,187.81,187.77,2.6658]
[1735256041486,8.98292338,187.81,187.77,2.6658]
[1735256041686,8.98292338,187.81,187.76,3.16]
[1735256041687,3.2474,187.86,187.76,3.16]
[1735256041891,3.2474,187.86,187.77,6.31762338]
[1735256042094,8.98222338,187.86,187.77,6.31762338]
[1735256042294,6.31762338,187.86,187.77,6.31762338]
[1735256042489,6.31762338,187.86,187.83,2.6649]
[1735256042691,6.31762338,187.88,187.81,3.16]
[1735256042896,6.31762338,187.9,187.81,9.47762338]
[1735256043397,8.98172338,187.9,187.82,3.2479]
[1735256043793,6.31762338,187.9,187.87,2.6643]
[1735256044101,6.31762338,187.92,187.86,3.16]
[1735256044296,6.31762338,187.92,187.87,2.6643]
[1735256044490,6.31762338,187.92,187.86,3.16]
[1735256045499,6.31762338,187.95,187.91,2.6638]
[1735256045894,6.31762338,187.95,187.91,5.8238]
[1735256046199,2.6633,187.95,187.91,5.8238]
[1735256046596,6.3589,188.0,187.91,5.8238]
[1735256046597,3.2908,188.0,187.91,3.16]
[1735256047199,2.663,187.98,187.91,3.16]
[1735256047597,9.90063792,188.01,187.91,3.16]
[1735256047897,9.90063792,188.01,187.96,2.6631]
[1735256047898,2.6626,188.0,187.96,2.6631]
[1735256048099,2.6626,188.0,187.96,5.8231]
[1735256048301,96.27830062,188.02,187.96,3.16]
[1735256048901,9.90063792,188.05,187.96,3.16]
[1735256049498,2.6622,188.03,187.99,2.6626]
[1735256049796,9.90063792,188.05,187.96,3.16]
[1735256051002,2.6622,188.03,187.98,2.6628]
[1735256051496,9.90063792,188.05,187.96,3.16]
[1735256051799,5.319,188.22,188.0,2.6626]
[1735256052006,9.90063792,188.09,187.96,3.16]
[1735256052198,2.6617,188.07,188.01,2.6623]
[1735256052393,2.6617,188.07,188.01,5.8223]
[1735256053104,2.6617,188.06,188.01,5.8223]
[1735256053510,2.6617,188.06,187.93,6.3557]
[1735256053511,9.90063792,188.06,187.97,3.16]
[1735256053702,2.6626,188.01,187.97,3.16]
[1735256053907,6.5602,188.14,187.98,2.6627]
[1735256054206,9.90063792,188.07,187.98,2.6627]
[1735256054596,9.90063792,188.07,187.98,5.8227]
[1735256055002,2.6622,188.04,187.98,5.8227]